bitfinex/quotes_ETHUSD_20250930
["timestamp","ask_amount","ask_price","bid_price","bid_amount"]
[1759191904040,0.2339,4204.8,4204.6,2.753]
[1759191905312,0.001,4204.9,4204.7,0.6887]
[1759191905841,0.1194,4204.9,4204.8,0.2317]
[1759191906212,0.1194,4204.9,4204.6,2.753]
[1759191906409,0.2339,4204.8,4204.6,2.753]
[1759191906813,0.1184,4204.6,4204.5,0.002]
[1759191907043,0.1184,4204.6,4204.5,0.6907]
[1759191907344,0.1184,4204.6,4204.5,2.755]
[1759191907932,0.1184,4204.6,4204.5,3.4437]
[1759191908480,0.1184,4204.6,4204.5,6.03264846]
[1759191908648,0.001,4204.9,4204.6,0.792]
[1759191908941,0.001,4204.9,4204.6,3.85904015]
[1759191909246,0.001,4204.9,4204.7,0.6887]
[1759191909432,0.001,4204.9,4204.8,2.753]
[1759191909745,0.001,4204.9,4204.8,5.0733812]
[1759191909942,0.001,4204.9,4204.8,7.42783325]
[1759191910145,0.001,4204.9,4204.8,7.54623325]
[1759191910517,0.001,4204.9,4204.8,10.54623325]
[1759191911631,0.001,4204.9,4204.8,25.04623325]
[1759191913734,0.001,4204.9,4204.8,22.04623325]
[1759191915161,0.001,4204.9,4204.8,19.29323325]
[1759191915344,0.001,4204.9,4204.8,22.04523325]
[1759191922573,0.001,4204.9,4204.8,16.25149886]
[1759191922789,0.2394,4204.9,4204.8,18.043]
[1759191926782,0.2394,4204.9,4204.8,18.042]
[1759191927368,0.2394,4204.9,4204.8,14.5]
[1759191927701,0.2394,4204.9,4204.8,2.75]
[1759191928797,0.001,4204.9,4204.8,2.75]
[1759191928971,0.001,4204.9,4204.8,3.4267]
[1759191929171,0.001,4204.9,4204.8,2.75]
[1759191930811,2.37823439,4204.8,4204.6,0.002]
[1759191931106,3.98375974,4204.7,4204.6,2.7510216]
[1759191931870,1.13186878,4204.7,4204.6,2.7510216]
[1759191932070,0.3578,4204.9,4204.6,2.7510216]
[1759191932275,0.2384,4204.8,4204.6,2.7510216]
[1759191932506,2.85183611,4204.8,4204.6,2.7510216]
[1759191932807,0.712,4204.7,4204.6,2.7510216]
[1759191933397,0.2384,4204.7,4204.6,2.7510216]
[1759191934404,0.55936361,4204.7,4204.6,2.7510216]
[1759191934828,0.32096361,4204.7,4204.6,3.4277216]
[1759191934992,0.1194,4204.9,4204.6,3.4277216]
[1759191935193,0.001,4204.9,4204.7,0.792]
[1759191935519,0.2384,4204.8,4204.6,0.0010216]
[1759191935722,0.2384,4204.8,4204.7,2.75]
[1759191936788,0.001,4204.9,4204.7,2.75]
[1759191937321,0.2394,4204.9,4204.7,2.75]
[1759191937690,0.001,4204.9,4204.7,2.75]
[1759191937888,0.001,4204.9,4204.7,3.4267]
[1759191938907,0.001,4204.9,4204.7,2.75]
[1759191939107,0.001,4204.9,4204.8,0.6767]
[1759191939312,0.001,4204.9,4204.8,0.70048234]
[1759191940297,0.001,4204.9,4204.8,0.6767]
[1759191940499,0.001,4204.9,4204.7,2.7737829]
[1759191940717,0.001,4204.9,4204.8,0.6951]
[1759191941031,0.001,4204.9,4204.8,0.5451]
[1759191941325,0.001,4204.9,4204.8,0.451]
[1759191941522,0.001,4204.9,4204.7,2.75]
[1759191941721,0.001,4204.9,4204.6,0.0010216]
[1759191941722,0.2433,4204.8,4204.6,0.0010216]
[1759191941895,0.51747721,4204.8,4204.7,2.749]
[1759191942092,0.94707721,4204.8,4204.7,2.749]
[1759191942303,0.51747721,4204.8,4204.7,2.749]
[1759191943339,0.001,4204.9,4204.7,2.749]
[1759191943834,0.2443,4204.9,4204.7,2.749]
[1759191944034,0.001,4204.9,4204.7,2.749]
[1759191944235,0.2433,4204.8,4204.7,2.749]
[1759191946079,0.001,4204.9,4204.7,2.749]
[1759191946231,0.2433,4204.8,4204.7,2.749]
[1759191947113,2.62153439,4204.8,4204.7,2.749]
[1759191947511,2.37829096,4204.7,4204.6,0.0010216]
[1759191947727,2.49669096,4204.7,4204.6,0.0010216]
[1759191947959,2.49669096,4204.7,4204.6,2.7500216]
[1759191947960,3.16959096,4204.7,4204.6,2.7500216]
[1759191948116,4.29697441,4204.7,4204.6,0.0010216]
[1759191948531,10.04597441,4204.7,4204.6,0.0010216]
[1759191949141,7.29697441,4204.7,4204.6,0.0010216]
[1759191949341,12.9036278,4204.7,4204.6,0.0010216]
[1759191949862,6.74897441,4204.7,4204.6,0.0010216]
[1759191950446,12.4740278,4204.7,4204.6,0.0010216]
[1759191950631,12.9036278,4204.7,4204.6,0.0010216]
[1759191950838,10.09573684,4204.7,4204.6,0.0010216]
[1759191951044,12.4740278,4204.7,4204.6,0.0010216]
[1759191951334,10.09573684,4204.7,4204.6,0.0010216]
[1759191951774,10.09573684,4204.7,4204.6,0.4520216]
[1759191951775,1.12738345,4204.7,4204.6,0.4520216]
[1759191951976,0.001,4204.9,4204.6,3.4441216]
[1759191952137,0.001,4204.9,4204.7,0.6951]
[1759191952337,0.1184,4204.8,4204.7,0.6951]
[1759191953077,0.1184,4204.8,4204.7,1.5108829]
[1759191953250,0.1184,4204.8,4204.7,18.38917386]
[1759191953451,0.2378,4204.8,4204.7,18.36539096]
[1759191955662,0.2388,4204.8,4204.7,18.36539096]
[1759191955863,0.2388,4204.8,4204.7,15.9871]
[1759191957995,0.9117,4204.8,4204.7,2.748]
[1759191958494,1.47869558,4204.8,4204.7,2.748]
[1759191958892,1.47869558,4204.8,4204.6,0.0010216]
[1759191959099,0.4296,4204.7,4204.6,0.0010216]
[1759191959563,0.6729,4204.7,4204.6,0.0010216]
[1759191960967,6.05119096,4204.7,4204.6,0.0010216]
[1759191961293,6.90627602,4204.7,4204.6,0.0010216]
[1759191962096,6.23337602,4204.7,4204.6,0.0010216]
[1759191962285,4.09838506,4204.7,4204.6,0.0010216]
[1759191962593,6.47667602,4204.7,4204.6,0.0010216]
[1759191963189,6.23337602,4204.7,4204.6,0.0010216]
[1759191963384,0.85508506,4204.7,4204.6,0.0010216]
[1759191963579,0.09539971,4204.7,4204.6,0.6961216]
[1759191963774,0.09539971,4204.7,4204.6,3.89025259]
[1759191964096,0.001,4204.8,4204.6,3.89025259]
[1759191964301,0.09639971,4204.8,4204.7,0.6951]
[1759191964600,0.09639971,4204.8,4204.7,14.5]
[1759191966315,0.09639971,4204.8,4204.7,14.951]
[1759191966616,0.09639971,4204.8,4204.7,15.1951]
[1759191968087,0.09639971,4204.8,4204.7,14.951]
[1759191968818,0.09639971,4204.8,4204.7,14.5]
[1759191969318,0.32319971,4204.8,4204.7,17.247]
[1759191969723,0.32319971,4204.8,4204.7,2.747]
[1759191969885,0.63852353,4204.8,4204.7,2.747]
[1759191970220,3.01675792,4204.8,4204.7,2.747]
[1759191970431,0.63852353,4204.8,4204.7,2.747]
[1759191971503,0.1184,4204.7,4204.6,0.0010216]
[1759191971819,0.3452,4204.7,4204.6,2.7480216]
[1759191972005,0.65881781,4204.7,4204.6,2.7480216]
[1759191972186,4.20240931,4204.7,4204.6,2.7480216]
[1759191972607,3.75250931,4204.7,4204.6,2.7480216]
[1759191972826,3.75250931,4204.7,4204.6,0.0010216]
[1759191974422,4.20240931,4204.7,4204.6,0.0010216]
[1759191975242,13.66454253,4204.7,4204.6,0.0010216]
[1759191975434,14.13614253,4204.7,4204.6,0.0010216]
[1759191978920,16.88214253,4204.7,4204.6,0.0010216]
[1759191979122,6.52570931,4204.7,4204.6,0.0010216]
[1759191979319,6.40730931,4204.7,4204.6,0.0010216]
[1759191981580,4.02901835,4204.7,4204.6,0.0010216]
[1759191981879,6.40730931,4204.7,4204.6,0.0010216]
[1759191983478,4.02901835,4204.7,4204.6,0.0010216]
[1759191983698,0.71540054,4204.7,4204.6,0.4457216]
[1759191986479,0.71540054,4204.7,4204.6,0.6717216]
[1759191986679,0.001,4204.8,4204.7,3.17029096]
[1759191986890,0.001,4204.8,4204.7,3.19407386]
[1759191987074,0.001,4204.8,4204.7,3.86477386]
[1759191987379,0.001,4204.8,4204.7,19.69243148]
[1759191987584,0.001,4204.8,4204.7,19.66864858]
[1759191987980,0.001,4204.8,4204.7,19.78704858]
[1759191990388,0.001,4204.8,4204.7,22.53304858]
[1759191993585,0.001,4204.8,4204.7,22.53204858]
[1759192000965,0.001,4204.8,4204.7,22.29794858]
[1759192001192,0.001,4204.8,4204.7,22.54484858]
[1759192002994,0.001,4204.8,4204.7,29.4568818]
[1759192011008,0.001,4204.8,4204.7,21.86134858]
[1759192011335,0.001,4204.8,4204.7,29.4568818]
[1759192014439,0.001,4204.8,4204.7,29.45423517]
[1759192015318,0.001,4204.8,4204.7,28.26641875]
[1759192016840,0.001,4204.8,4204.7,16.73805762]
[1759192017026,0.2387,4204.8,4204.7,19.73869096]
[1759192017233,0.707,4204.8,4204.7,19.73869096]
[1759192017431,0.2387,4204.8,4204.7,20.53069096]
[1759192019937,0.2387,4204.8,4204.7,6.03069096]
[1759192020445,0.2387,4204.8,4204.7,20.53069096]
[1759192020606,0.2387,4204.8,4204.7,22.82190163]
[1759192022442,0.707,4204.8,4204.7,20.53069096]
[1759192022806,0.707,4204.8,4204.7,0.792]
[1759192023038,0.707,4204.8,4204.7,3.534]
[1759192023553,0.707,4204.8,4204.7,5.91229096]
[1759192025680,0.2387,4204.8,4204.7,5.91229096]
[1759192026833,0.001,4204.8,4204.7,20.41229096]
[1759192027641,0.001,4204.8,4204.7,26.49309639]
[1759192027975,0.001,4204.8,4204.7,26.61149639]
[1759192028346,1e-08,4205.1,4205.0,6.17012128]
[1759192028542,1e-08,4205.1,4205.0,14.80164284]
[1759192028778,1e-08,4205.1,4205.0,16.68128283]
[1759192028958,1e-08,4205.1,4205.0,22.57180439]
[1759192029149,1e-08,4205.1,4205.0,16.68128283]
[1759192029557,1e-08,4205.1,4205.0,22.57180439]
[1759192030066,1e-08,4205.1,4205.0,16.68128283]
[1759192030368,1e-08,4205.6,4205.5,3.16983854]
[1759192030540,1e-08,4205.6,4205.5,12.78164395]
[1759192030740,1e-08,4205.6,4205.5,12.90004395]
[1759192031370,1e-08,4206.1,4206.0,3.16955587]
[1759192031667,1e-08,4206.1,4206.0,14.82485298]
[1759192031867,1e-08,4206.1,4206.0,14.91947743]
[1759192032069,1e-08,4206.1,4206.0,17.31248824]
[1759192037285,0.001,4208.4,4207.7,3.16859528]
[1759192037581,0.001,4208.4,4207.7,15.11597637]
[1759192037582,0.001,4208.3,4207.7,15.11597637]
[1759192037748,0.001,4208.3,4207.7,15.93527637]
[1759192039677,0.001,4208.3,4207.7,21.82579793]
[1759192039859,0.001,4208.3,4207.7,15.93527637]
[1759192043316,0.001,4208.3,4207.7,21.82579793]
[1759192043610,0.001,4208.3,4207.7,15.93527637]
[1759192043902,0.001,4208.3,4207.7,15.23337637]
[1759192044105,0.2464,4208.3,4207.7,15.23337637]
[1759192045108,0.2464,4208.3,4207.7,12.49437637]
[1759192045309,0.2464,4208.3,4207.7,15.23237637]
[1759192047109,0.455,4208.1,4207.7,15.23237637]
[1759192048122,0.2454,4208.2,4207.7,15.23237637]
[1759192048307,0.001,4208.3,4207.7,15.70507637]
[1759192048834,0.001,4208.3,4207.7,15.93327637]
[1759192049003,0.001,4208.3,4207.7,15.70507637]
[1759192049522,0.001,4208.3,4207.7,15.93327637]
[1759192050694,0.2454,4208.2,4207.7,15.23237637]
[1759192052199,0.2454,4208.2,4207.7,15.23137637]
[1759192052432,0.2454,4208.0,4207.7,15.23137637]
[1759192054010,0.455,4208.2,4207.7,15.23137637]
[1759192054209,0.2464,4207.8,4207.7,15.23137637]
[1759192054527,0.001,4207.8,4207.7,15.23137637]
[1759192055312,0.001,4207.8,4207.7,9.34085481]
[1759192055512,0.2464,4207.8,4207.7,12.49437637]
[1759192055734,0.7014,4207.8,4207.7,15.23137637]
[1759192056422,0.2464,4207.8,4207.7,15.23137637]
[1759192056819,0.001,4207.8,4207.7,15.23137637]
[1759192057338,0.2464,4207.8,4207.7,15.23137637]
[1759192058917,0.2464,4207.8,4207.7,12.17751684]
[1759192059112,0.2464,4207.8,4207.7,0.1184]
[1759192059113,0.7014,4207.8,4207.7,0.1184]
[1759192059312,0.7014,4207.8,4207.7,5.23199528]
[1759192059716,0.7014,4207.8,4207.7,6.02399528]
[1759192061734,0.7014,4207.8,4207.7,3.6474]
[1759192061930,0.7014,4207.8,4207.7,3.529]
[1759192062310,0.7014,4207.8,4207.7,5.90559528]
[1759192062515,0.682,4207.8,4207.7,3.529]
[1759192063136,0.682,4207.8,4207.7,5.90559528]
[1759192065051,0.682,4207.8,4207.7,20.40559528]
[1759192065228,0.2464,4207.8,4207.7,20.40559528]
[1759192066653,0.682,4207.8,4207.7,18.029]
[1759192066949,0.682,4207.8,4207.7,20.40559528]
[1759192068926,0.2464,4207.8,4207.7,20.40559528]
[1759192069326,0.682,4207.8,4207.7,20.40559528]
[1759192069720,0.682,4207.8,4207.7,15.292]
[1759192069921,6.69092156,4207.8,4207.7,17.236]
[1759192070253,7.36001372,4207.8,4207.7,17.236]
[1759192070447,9.73655252,4207.8,4207.7,17.236]
[1759192070824,1.46949216,4207.8,4207.7,17.236]
[1759192073251,9.73655252,4207.8,4207.7,14.5]
[1759192073457,9.06746036,4207.8,4207.7,17.236]
[1759192073756,9.78235118,4207.8,4207.7,17.236]
[1759192073958,9.78235118,4207.8,4207.7,2.736]
[1759192074323,3.89182962,4207.8,4207.7,2.736]
[1759192074525,8.31131403,4207.8,4207.7,2.736]
[1759192075222,2.37676474,4207.4,4207.3,14.502]
[1759192075421,0.6787,4207.4,4207.3,17.238]
[1759192075852,3.05546474,4207.4,4207.3,17.238]
[1759192076046,3.59867677,4207.4,4207.3,17.238]
[1759192076957,3.59867677,4207.4,4207.3,0.002]
[1759192077129,4.31364256,4207.4,4207.3,0.002]
[1759192079162,7.31364256,4207.4,4207.3,0.002]
[1759192080254,4.50127782,4207.4,4207.3,0.002]
[1759192080458,14.24020002,4207.4,4207.3,0.002]
[1759192084058,4.50127782,4207.4,4207.3,0.002]
[1759192084369,7.31364256,4207.4,4207.3,0.002]
[1759192085143,6.87804256,4207.4,4207.3,0.002]
[1759192085591,11.42783528,4207.4,4207.3,0.002]
[1759192085775,4.25817782,4207.4,4207.3,0.002]
[1759192085959,6.63494256,4207.4,4207.3,0.002]
[1759192086278,3.63494256,4207.4,4207.3,0.002]
[1759192086580,1.25817782,4207.4,4207.3,0.002]
[1759192086968,0.71496579,4207.4,4207.3,0.002]
[1759192087173,0.71496579,4207.4,4207.3,0.6819]
[1759192087373,0.71496579,4207.4,4207.3,0.4358]
[1759192088154,0.1184,4207.5,4207.4,0.792]
[1759192088377,0.1194,4207.8,4207.4,6.58464972]
[1759192088560,0.1194,4207.8,4207.6,0.792]
[1759192089266,0.1194,4207.8,4207.7,3.84459528]
[1759192089461,0.001,4207.8,4207.7,3.84459528]
[1759192089659,0.001,4207.8,4207.7,18.34459528]
[1759192090285,0.001,4207.8,4207.7,20.74190071]
[1759192091283,0.001,4207.8,4207.7,23.47790071]
[1759192093982,0.001,4207.8,4207.7,20.42530543]
[1759192094193,0.001,4207.8,4207.7,15.292]
[1759192094487,0.001,4207.8,4207.7,20.40359528]
[1759192094681,0.001,4207.8,4207.7,20.84179528]
[1759192096102,0.001,4207.8,4207.7,18.4652]
[1759192096296,0.001,4207.8,4207.7,18.027]
[1759192096598,0.001,4207.8,4207.7,20.40359528]
[1759192097898,0.001,4207.8,4207.7,23.38151457]
[1759192098784,0.001,4207.8,4207.7,26.38151457]
[1759192105562,0.001,4207.8,4207.7,25.70541457]
[1759192106156,0.001,4207.8,4207.7,26.14361457]
[1759192109161,0.001,4207.8,4207.7,25.70541457]
[1759192109336,0.2424,4207.8,4207.7,22.70541457]
[1759192110032,0.001,4207.8,4207.7,22.70541457]
[1759192111849,0.2424,4207.8,4207.7,22.70541457]
[1759192112146,0.001,4207.8,4207.7,22.70541457]
[1759192112647,0.001,4207.8,4207.7,23.14361457]
[1759192113064,0.001,4207.8,4207.7,22.70541457]
[1759192115420,0.2424,4207.8,4207.7,22.70541457]
[1759192116721,0.001,4207.8,4207.7,20.40359528]
[1759192117026,0.6773,4207.8,4207.7,20.40359528]
[1759192117227,0.6773,4207.8,4207.7,18.025]
[1759192117433,0.6773,4207.8,4207.7,20.40159528]
[1759192118660,0.2424,4207.8,4207.7,20.40159528]
[1759192119457,0.2424,4207.8,4207.7,18.025]
[1759192119858,0.6902,4207.8,4207.7,14.5]
[1759192120029,0.6902,4207.8,4207.7,17.233]
[1759192120953,0.99686105,4207.8,4207.7,17.233]
[1759192121338,0.6902,4207.8,4207.7,17.233]
[1759192122049,0.2424,4207.8,4207.7,17.233]
[1759192122253,0.001,4207.8,4207.7,17.233]
[1759192123161,0.001,4207.8,4207.7,20.40159528]
[1759192123364,0.001,4207.8,4207.7,21.07489528]
[1759192124631,0.001,4207.8,4207.7,23.47220071]
[1759192124833,0.001,4207.8,4207.7,23.59060071]
[1759192132272,0.001,4207.8,4207.7,23.35170071]
[1759192136283,0.001,4207.8,4207.7,15.4104]
[1759192136470,0.2266,4207.8,4207.7,20.51799528]
[1759192137055,0.6744,4207.8,4207.7,18.1414]
[1759192137255,0.6744,4207.8,4207.7,18.023]
[1759192137957,0.6744,4207.8,4207.7,20.39959528]
[1759192138675,0.2266,4207.8,4207.7,18.023]
[1759192139487,0.2266,4207.8,4207.7,20.39959528]
[1759192140187,0.001,4207.8,4207.7,20.39959528]
[1759192141188,0.2266,4207.8,4207.7,20.39959528]
[1759192141888,0.001,4207.8,4207.7,20.39959528]
[1759192142475,0.001,4207.8,4207.7,23.52420393]
[1759192146005,0.001,4207.8,4207.7,23.28530393]
[1759192146380,0.001,4207.8,4207.7,17.74330865]
[1759192146563,0.2266,4207.8,4207.7,15.4104]
[1759192146764,0.2266,4207.8,4207.7,18.023]
[1759192147072,0.6744,4207.8,4207.7,15.292]
[1759192147285,0.6744,4207.8,4207.7,18.023]
[1759192148782,0.6744,4207.8,4207.7,15.292]
[1759192148988,0.6744,4207.8,4207.7,18.023]
[1759192149363,0.6744,4207.8,4207.7,20.39959528]
[1759192149791,0.2266,4207.8,4207.7,20.39959528]
[1759192152108,0.2266,4207.8,4207.7,18.023]
[1759192152493,0.2266,4207.8,4207.7,20.39959528]
[1759192152970,0.2266,4207.8,4207.7,18.023]
[1759192153684,0.2266,4207.8,4207.7,20.39959528]
[1759192154084,0.2266,4207.8,4207.7,18.023]
[1759192154284,0.2266,4207.8,4207.7,20.39959528]
[1759192154869,0.2266,4207.8,4207.7,18.023]
[1759192155072,0.7016,4207.8,4207.7,14.5]
[1759192155290,0.7016,4207.8,4207.7,17.23]
[1759192159188,0.236,4207.8,4207.7,17.23]
[1759192159909,0.001,4207.8,4207.7,17.23]
[1759192160108,0.236,4207.8,4207.7,17.23]
[1759192161284,0.1184,4207.7,4207.3,0.002]
[1759192161490,8.258139,4207.7,4207.4,0.555]
[1759192161812,4.21087408,4207.6,4207.5,14.5]
[1759192161989,2.37670825,4207.5,4207.4,0.555]
[1759192162184,0.1184,4207.4,4207.3,0.002]
[1759192162388,0.584,4207.4,4207.3,2.731]
[1759192162711,1.37448084,4207.4,4207.3,2.731]
[1759192162910,0.3534,4207.4,4207.3,2.731]
[1759192163081,0.1184,4207.4,4207.3,2.731]
[1759192164510,0.1184,4207.4,4207.3,5.10782123]
[1759192164821,0.1184,4207.4,4207.3,3.2014]
[1759192165015,0.1184,4207.4,4207.3,2.731]
[1759192165692,0.1184,4207.4,4207.3,17.231]
[1759192166827,0.1184,4207.4,4207.3,20.07822123]
[1759192167029,0.1184,4207.4,4207.3,21.10812123]
[1759192167231,0.1194,4207.8,4207.4,3.16873982]
[1759192167526,0.001,4207.8,4207.6,0.792]
[1759192167829,0.001,4207.8,4207.7,2.729]
[1759192168922,0.001,4207.8,4207.7,5.10559528]
[1759192169123,0.001,4207.8,4207.7,2.729]
[1759192169323,0.001,4207.8,4207.7,5.57599528]
[1759192171218,0.001,4207.8,4207.7,20.31389528]
[1759192171639,0.001,4207.8,4207.7,19.60559528]
[1759192171839,0.001,4207.8,4207.7,23.38333094]
[1759192172905,0.001,4207.8,4207.7,23.50173094]
[1759192177031,0.001,4207.8,4207.7,20.06443094]
[1759192177245,0.7016,4207.8,4207.7,17.228]
[1759192177450,0.82,4207.8,4207.7,14.5]
[1759192177751,6.70152556,4207.8,4207.7,17.228]
[1759192177958,0.3544,4207.8,4207.7,19.60459528]
[1759192178245,0.1194,4207.8,4207.7,17.228]
[1759192178422,0.1194,4207.8,4207.7,19.60459528]
[1759192178852,0.09563433,4207.8,4207.7,19.60459528]
[1759192179754,0.236,4208.1,4207.9,2.37644055]
[1759192179929,0.001,4208.3,4208.0,2.728]
[1759192180136,8.25790627,4208.1,4207.7,14.5]
[1759192180335,0.4627,4208.0,4207.8,2.728]
[1759192180555,0.6934,4207.9,4207.8,2.728]
[1759192180760,6.59639423,4208.1,4207.8,2.728]
[1759192180928,6.11222556,4208.1,4207.8,2.728]
[1759192181268,0.2307,4208.0,4207.8,2.728]
[1759192181440,5.88152556,4208.1,4207.8,2.728]
[1759192181640,0.2307,4208.0,4207.8,2.728]
[1759192181865,0.2307,4207.9,4207.8,2.728]
[1759192185458,0.2307,4207.9,4207.8,17.228]
[1759192186159,0.001,4208.3,4207.8,17.228]
[1759192186362,0.001,4208.3,4208.1,2.37636294]
[1759192186549,0.001,4208.3,4208.2,5.10431291]
[1759192187330,0.001,4208.3,4208.2,5.77551291]
[1759192188450,0.001,4208.3,4208.2,6.56751291]
[1759192189364,0.001,4208.3,4208.2,21.06751291]
[1759192189556,0.001,4208.3,4208.2,22.77649833]
[1759192189753,0.001,4208.3,4208.2,22.89489833]
[1759192192874,0.001,4208.3,4208.2,22.22369833]
[1759192193067,0.001,4208.3,4208.2,20.51471291]
[1759192193374,0.001,4208.3,4208.2,21.18591291]
[1759192196040,0.001,4208.3,4208.2,20.94731291]
[1759192196642,0.001,4208.3,4208.2,21.18591291]
[1759192196944,0.001,4208.3,4208.2,20.94731291]
[1759192198845,0.001,4208.3,4208.2,14.6184]
[1759192199051,0.8128,4208.3,4208.2,17.227]
[1759192199379,1.82401945,4208.3,4208.2,14.5]
[1759192199553,4.20027589,4208.3,4208.2,17.227]
[1759192200582,1.82401945,4208.3,4208.2,17.227]
[1759192200982,0.8128,4208.3,4208.2,17.227]
[1759192201151,0.3501,4208.3,4208.2,17.227]
[1759192201981,0.8128,4208.3,4208.2,17.226]
[1759192202286,3.18905644,4208.3,4208.2,17.226]
[1759192204177,0.8128,4208.3,4208.2,17.226]
[1759192204384,1.20337688,4208.3,4208.2,17.226]
[1759192204553,0.3501,4208.3,4208.2,17.226]
[1759192204749,2.72635644,4208.3,4208.2,17.226]
[1759192205488,0.3501,4208.3,4208.2,17.226]
[1759192205866,2.72635644,4208.3,4208.2,17.226]
[1759192206182,3.18905644,4208.3,4208.2,17.226]
[1759192206389,0.8128,4208.3,4208.2,17.226]
[1759192206557,1.20338226,4208.3,4208.2,17.226]
[1759192206881,3.5796387,4208.3,4208.2,17.226]
[1759192207084,1.20338226,4208.3,4208.2,17.226]
[1759192207578,0.74068226,4208.3,4208.2,17.226]
[1759192208386,0.3501,4208.3,4208.2,17.226]
[1759192209287,0.1194,4208.3,4208.2,17.226]
[1759192209883,0.001,4208.3,4208.2,18.018]
[1759192210083,0.001,4208.3,4208.2,17.226]
[1759192210084,3.07475644,4208.3,4208.2,17.226]
[1759192210290,4.40747625,4208.3,4208.2,17.226]
[1759192210856,4.40747625,4208.3,4208.2,2.726]
[1759192211565,1.56151981,4208.3,4207.8,0.002]
[1759192211784,0.1184,4208.0,4207.8,0.002]
[1759192211969,2.37648233,4207.9,4207.8,2.728]
[1759192212176,4.30019991,4207.9,4207.8,2.728]
[1759192212480,2.1689544,4207.9,4207.8,0.002]
[1759192212692,0.2278,4207.9,4207.8,0.002]
[1759192212894,2.60428233,4207.9,4207.8,0.002]
[1759192213468,2.37648233,4207.9,4207.8,0.002]
[1759192213800,2.60428233,4207.9,4207.8,0.002]
[1759192214794,0.1184,4208.0,4207.8,0.6836]
[1759192214963,0.1184,4207.9,4207.8,0.2332]
[1759192215168,0.1184,4207.9,4207.8,2.9592]
[1759192215594,0.1184,4207.9,4207.8,3.4096]
[1759192215766,0.1184,4207.9,4207.8,5.7861388]
[1759192215967,0.1184,4207.9,4207.8,3.4096]
[1759192216501,0.1184,4207.9,4207.8,6.3469388]
[1759192216699,0.1194,4208.3,4208.2,3.16831291]
[1759192216997,0.001,4208.3,4208.2,5.89431291]
[1759192217199,0.001,4208.3,4208.2,21.07591291]
[1759192218000,0.001,4208.3,4208.2,18.6996]
[1759192218524,0.2428,4208.3,4208.2,17.226]
[1759192218673,0.3612,4208.3,4208.2,17.226]
[1759192218874,0.1194,4208.3,4208.2,17.226]
[1759192219107,0.1194,4208.3,4208.2,19.60231291]
[1759192219998,0.1194,4208.3,4208.2,20.05271291]
[1759192220192,0.1194,4208.3,4208.2,19.60231291]
[1759192220602,0.1194,4208.3,4208.2,16.87631291]
[1759192220917,0.1194,4208.3,4208.2,20.05271291]
[1759192222617,0.1194,4208.3,4208.2,22.3187463]
[1759192222920,0.001,4208.3,4208.2,8.0499463]
[1759192223214,0.001,4208.3,4208.2,5.78391291]
[1759192223416,0.001,4208.3,4208.2,20.28391291]
[1759192225699,0.001,4208.3,4208.2,20.05271291]
[1759192226013,0.001,4208.3,4208.2,20.28391291]
[1759192226399,0.001,4208.3,4208.2,21.07591291]
[1759192226792,0.001,4208.3,4208.2,23.4211463]
[1759192227590,0.001,4208.3,4208.2,17.63723339]
[1759192227790,0.001,4208.3,4208.2,20.36223339]
[1759192228213,0.001,4208.3,4208.2,17.63723339]
[1759192228412,0.001,4208.3,4208.2,20.36223339]
[1759192229637,0.001,4208.3,4208.2,23.4201463]
[1759192231141,0.001,4208.3,4208.2,20.36223339]
[1759192231507,0.001,4208.3,4208.2,22.7385463]
[1759192232515,0.001,4208.3,4208.2,23.1889463]
[1759192232838,0.001,4208.3,4208.2,22.7385463]
[1759192233051,0.001,4208.3,4208.2,23.1889463]
[1759192233217,0.001,4208.3,4208.2,23.4201463]
[1759192233727,0.001,4208.3,4208.2,20.81263339]
[1759192233931,0.2428,4208.3,4208.2,14.5]
[1759192234139,0.3612,4208.3,4208.2,17.225]
[1759192235475,0.1194,4208.3,4208.2,17.225]
[1759192235682,0.001,4208.3,4208.2,21.07491291]
[1759192236242,0.001,4208.3,4208.2,18.6986]
[1759192236442,0.001,4208.3,4208.2,21.07491291]
[1759192236643,0.001,4208.3,4208.2,23.43188162]
[1759192239967,0.001,4208.3,4208.2,23.55028162]
[1759192243290,0.001,4208.3,4208.2,26.43188162]
[1759192243467,0.001,4208.3,4208.2,26.55028162]
[1759192243883,0.001,4208.3,4208.2,26.64554365]
[1759192245316,0.001,4208.3,4208.2,30.84175371]
[1759192245494,0.001,4208.3,4208.2,33.47049168]
[1759192248195,0.001,4208.3,4208.2,23.59408162]
[1759192248494,0.001,4208.3,4208.2,26.58298162]
[1759192250799,0.001,4208.3,4208.2,25.86768162]
[1759192250975,0.001,4208.3,4208.2,26.34208162]
[1759192251304,0.001,4208.3,4208.2,26.58298162]
[1759192252897,0.001,4208.3,4208.2,25.86668162]
[1759192254802,0.2466,4208.3,4208.2,25.86668162]
[1759192256918,0.2466,4208.3,4208.2,20.14368162]
[1759192257072,0.2466,4208.3,4208.2,22.86668162]
[1759192257271,0.2466,4208.3,4208.2,17.78671291]
[1759192257584,0.2466,4208.3,4208.2,20.50971291]
[1759192257585,0.7003,4208.3,4208.2,20.50971291]
[1759192257994,0.2466,4208.3,4208.2,20.50971291]
[1759192258820,0.001,4208.3,4208.2,20.50971291]
[1759192259020,0.001,4208.3,4208.2,21.22501291]
[1759192259261,0.001,4208.3,4208.2,26.62231834]
[1759192262725,0.001,4208.3,4208.2,31.7870669]
[1759192263021,0.2466,4208.3,4208.2,29.0640669]